Workbook

Sheet Marschzeitberechnung
A2: Marschzeitberechnung cudesch
A6: Route: | M6: Geschwindigkeits- faktor (Lkm / h):
A7: Datum: | D7: Zwischenwerte | H7: Gesamtsummen | M7: 4
A8: erstellt von: | D8: Höhendifferenz in 100m * | E8: Horizontaldistanz | F8: Leistungskilometer ** | G8: Marschzeit | H8: Distanz | I8: Leistungskilometer | J8: Geplante Zeit | K8: Tatsächliche Zeit | L8: Pausen | M8: Bemerkungen * Höhenmeter direkt in Hektometer notie- ren (1 hm = 100 m) ** Leistungskilometer: Distanz (in km) + Steigung (in hm)
A9: Landeskarten:
A11: Ort, Flurname, Koordinaten | C11: Höhe | D11: hm | E11: km | F11: Lkm | G11: h:mm | H11: km | I11: Lkm | J11: hh:mm | K11: hh:mm | L11: h:mm | P11: Steigung/Gefälle
P12: %
D13: =IF(C14>0,(C14-C12)/100,0) -> 0.00 | F13: =IF(P14<-20,-D13/1.5+E13,IF(P14<0,E13,D13+E13)) -> 0.0 | G13: =TIME(0,60/$M$7*F13,0) -> 00:00:00
H14: =IF(E13>0,H12+E13,0) -> 0.0 | I14: =IF(F13>0,I12+F13,0) -> 0.0 | J14: =IF((J12+G13+L12)<>J12,J12+G13+L12,0) -> 00:00:00 | P14: =IF(E13=0,0,D13/(10*E13)*100) -> 0.0
D15: =IF(C16>0,(C16-C14)/100,0) -> 0.00 | F15: =IF(P16<-20,-D15/1.5+E15,IF(P16<0,E15,D15+E15)) -> 0.0 | G15: =TIME(0,60/$M$7*F15,0) -> 00:00:00 | J15: =IF((J14+G15+L15)<>J14,J14+G15+L15,0) -> 0 | P15: 0.0
H16: =IF(E15>0,H14+E15,0) -> 0.0 | I16: =IF(F15>0,I14+F15,0) -> 0.0 | J16: =IF((J14+G15+L14)<>J14,J14+G15+L14,0) -> 00:00:00 | P16: 0.0
D17: =IF(C18>0,(C18-C16)/100,0) -> 0.00 | F17: =IF(P18<-20,-D17/1.5+E17,IF(P18<0,E17,D17+E17)) -> 0.0 | G17: =TIME(0,60/$M$7*F17,0) -> 00:00:00 | J17: =IF((J16+G17+L17)<>J16,J16+G17+L17,0) -> 0 | P17: 0.0
H18: =IF(E17>0,H16+E17,0) -> 0.0 | I18: =IF(F17>0,I16+F17,0) -> 0.0 | J18: =IF((J16+G17+L16)<>J16,J16+G17+L16,0) -> 00:00:00 | P18: 0.0
D19: =IF(C20>0,(C20-C18)/100,0) -> 0.00 | F19: =IF(P20<-20,-D19/1.5+E19,IF(P20<0,E19,D19+E19)) -> 0.0 | G19: =TIME(0,60/$M$7*F19,0) -> 00:00:00 | J19: =IF((J18+G19+L19)<>J18,J18+G19+L19,0) -> 0 | P19: 0.0
H20: =IF(E19>0,H18+E19,0) -> 0.0 | I20: =IF(F19>0,I18+F19,0) -> 0.0 | J20: =IF((J18+G19+L18)<>J18,J18+G19+L18,0) -> 00:00:00 | P20: 0.0
D21: =IF(C22>0,(C22-C20)/100,0) -> 0.00 | F21: =IF(P22<-20,-D21/1.5+E21,IF(P22<0,E21,D21+E21)) -> 0.0 | G21: =TIME(0,60/$M$7*F21,0) -> 00:00:00 | J21: =IF((J20+G21+L21)<>J20,J20+G21+L21,0) -> 0 | P21: 0.0
H22: =IF(E21>0,H20+E21,0) -> 0.0 | I22: =IF(F21>0,I20+F21,0) -> 0.0 | J22: =IF((J20+G21+L20)<>J20,J20+G21+L20,0) -> 00:00:00 | P22: 0.0
D23: =IF(C24>0,(C24-C22)/100,0) -> 0.00 | F23: =IF(P24<-20,-D23/1.5+E23,IF(P24<0,E23,D23+E23)) -> 0.0 | G23: =TIME(0,60/$M$7*F23,0) -> 00:00:00 | J23: =IF((J22+G23+L23)<>J22,J22+G23+L23,0) -> 0 | P23: 0.0
H24: =IF(E23>0,H22+E23,0) -> 0.0 | I24: =IF(F23>0,I22+F23,0) -> 0.0 | J24: =IF((J22+G23+L22)<>J22,J22+G23+L22,0) -> 00:00:00 | P24: 0.0
D25: =IF(C26>0,(C26-C24)/100,0) -> 0.00 | F25: =IF(P26<-20,-D25/1.5+E25,IF(P26<0,E25,D25+E25)) -> 0.0 | G25: =TIME(0,60/$M$7*F25,0) -> 00:00:00 | J25: =IF((J24+G25+L25)<>J24,J24+G25+L25,0) -> 0 | P25: 0.0
H26: =IF(E25>0,H24+E25,0) -> 0.0 | I26: =IF(F25>0,I24+F25,0) -> 0.0 | J26: =IF((J24+G25+L24)<>J24,J24+G25+L24,0) -> 00:00:00 | P26: 0.0
D27: =IF(C28>0,(C28-C26)/100,0) -> 0.00 | F27: =IF(P28<-20,-D27/1.5+E27,IF(P28<0,E27,D27+E27)) -> 0.0 | G27: =TIME(0,60/$M$7*F27,0) -> 00:00:00 | J27: =IF((J26+G27+L27)<>J26,J26+G27+L27,0) -> 0 | P27: 0.0
H28: =IF(E27>0,H26+E27,0) -> 0.0 | I28: =IF(F27>0,I26+F27,0) -> 0.0 | J28: =IF((J26+G27+L26)<>J26,J26+G27+L26,0) -> 00:00:00 | P28: 0.0
D29: =IF(C30>0,(C30-C28)/100,0) -> 0.00 | F29: =IF(P30<-20,-D29/1.5+E29,IF(P30<0,E29,D29+E29)) -> 0.0 | G29: =TIME(0,60/$M$7*F29,0) -> 00:00:00 | J29: =IF((J28+G29+L29)<>J28,J28+G29+L29,0) -> 0 | P29: 0.0
H30: =IF(E29>0,H28+E29,0) -> 0.0 | I30: =IF(F29>0,I28+F29,0) -> 0.0 | J30: =IF((J28+G29+L28)<>J28,J28+G29+L28,0) -> 00:00:00 | P30: 0.0
D31: =IF(C32>0,(C32-C30)/100,0) -> 0.00 | F31: =IF(P32<-20,-D31/1.5+E31,IF(P32<0,E31,D31+E31)) -> 0.0 | G31: =TIME(0,60/$M$7*F31,0) -> 00:00:00 | J31: =IF((J30+G31+L31)<>J30,J30+G31+L31,0) -> 0 | P31: 0.0
H32: =IF(E31>0,H30+E31,0) -> 0.0 | I32: =IF(F31>0,I30+F31,0) -> 0.0 | J32: =IF((J30+G31+L30)<>J30,J30+G31+L30,0) -> 00:00:00 | P32: 0.0
D33: =IF(C34>0,(C34-C32)/100,0) -> 0.00 | F33: =IF(P34<-20,-D33/1.5+E33,IF(P34<0,E33,D33+E33)) -> 0.0 | G33: =TIME(0,60/$M$7*F33,0) -> 00:00:00 | J33: =IF((J32+G33+L33)<>J32,J32+G33+L33,0) -> 0 | P33: 0.0
H34: =IF(E33>0,H32+E33,0) -> 0.0 | I34: =IF(F33>0,I32+F33,0) -> 0.0 | J34: =IF((J32+G33+L32)<>J32,J32+G33+L32,0) -> 00:00:00 | P34: 0.0
D35: =IF(C36>0,(C36-C34)/100,0) -> 0.00 | F35: =IF(P36<-20,-D35/1.5+E35,IF(P36<0,E35,D35+E35)) -> 0.0 | G35: =TIME(0,60/$M$7*F35,0) -> 00:00:00 | J35: =IF((J34+G35+L35)<>J34,J34+G35+L35,0) -> 0 | P35: 0.0
H36: =IF(E35>0,H34+E35,0) -> 0.0 | I36: =IF(F35>0,I34+F35,0) -> 0.0 | J36: =IF((J34+G35+L34)<>J34,J34+G35+L34,0) -> 00:00:00 | P36: 0.0
D37: =IF(C38>0,(C38-C36)/100,0) -> 0.00 | F37: =IF(P38<-20,-D37/1.5+E37,IF(P38<0,E37,D37+E37)) -> 0.0 | G37: =TIME(0,60/$M$7*F37,0) -> 00:00:00 | J37: =IF((J36+G37+L37)<>J36,J36+G37+L37,0) -> 0 | P37: 0.0
H38: =IF(E37>0,H36+E37,0) -> 0.0 | I38: =IF(F37>0,I36+F37,0) -> 0.0 | J38: =IF((J36+G37+L36)<>J36,J36+G37+L36,0) -> 00:00:00 | P38: 0.0
D39: =IF(C40>0,(C40-C38)/100,0) -> 0.00 | F39: =IF(P40<-20,-D39/1.5+E39,IF(P40<0,E39,D39+E39)) -> 0.0 | G39: =TIME(0,60/$M$7*F39,0) -> 00:00:00 | J39: =IF((J38+G39+L39)<>J38,J38+G39+L39,0) -> 0 | P39: 0.0
H40: =IF(E39>0,H38+E39,0) -> 0.0 | I40: =IF(F39>0,I38+F39,0) -> 0.0 | J40: =IF((J38+G39+L38)<>J38,J38+G39+L38,0) -> 00:00:00 | P40: 0.0
D41: =IF(C42>0,(C42-C40)/100,0) -> 0.00 | F41: =IF(P42<-20,-D41/1.5+E41,IF(P42<0,E41,D41+E41)) -> 0.0 | G41: =TIME(0,60/$M$7*F41,0) -> 00:00:00 | J41: =IF((J40+G53+L41)<>J40,J40+G53+L41,0) -> 0 | P41: 0.0
H42: =IF(E41>0,H40+E41,0) -> 0.0 | I42: =IF(F41>0,I40+F41,0) -> 0.0 | J42: =IF((J40+G41+L40)<>J40,J40+G41+L40,0) -> 00:00:00 | P42: 0.0
D43: =IF(C44>0,(C44-C42)/100,0) -> 0.00 | F43: =IF(P44<-20,-D43/1.5+E43,IF(P44<0,E43,D43+E43)) -> 0.0 | G43: =TIME(0,60/$M$7*F43,0) -> 00:00:00 | J43: =IF((J42+#REF!+L43)<>J42,J42+#REF!+L43,0) ->  | P43: 0.0
H44: =IF(E43>0,H42+E43,0) -> 0.0 | I44: =IF(F43>0,I42+F43,0) -> 0.0 | J44: =IF((J42+G43+L42)<>J42,J42+G43+L42,0) -> 00:00:00 | P44: 0.0
D45: =IF(C46>0,(C46-C44)/100,0) -> 0.00 | F45: =IF(P46<-20,-D45/1.5+E45,IF(P46<0,E45,D45+E45)) -> 0.0 | G45: =TIME(0,60/$M$7*F45,0) -> 00:00:00 | J45: =IF((J44+G45+L45)<>J44,J44+G45+L45,0) -> 0 | P45: 0.0
H46: =IF(E45>0,H44+E45,0) -> 0.0 | I46: =IF(F45>0,I44+F45,0) -> 0.0 | J46: =IF((J44+G45+L44)<>J44,J44+G45+L44,0) -> 00:00:00 | P46: 0.0
D47: =IF(C48>0,(C48-C46)/100,0) -> 0.00 | F47: =IF(P48<-20,-D47/1.5+E47,IF(P48<0,E47,D47+E47)) -> 0.0 | G47: =TIME(0,60/$M$7*F47,0) -> 00:00:00 | J47: =IF((J46+G47+L47)<>J46,J46+G47+L47,0) -> 0 | P47: 0.0
H48: =IF(E47>0,H46+E47,0) -> 0.0 | I48: =IF(F47>0,I46+F47,0) -> 0.0 | J48: =IF((J46+G47+L46)<>J46,J46+G47+L46,0) -> 00:00:00 | P48: 0.0
D49: =IF(C50>0,(C50-C48)/100,0) -> 0.00 | F49: =IF(P50<-20,-D49/1.5+E49,IF(P50<0,E49,D49+E49)) -> 0.0 | G49: =TIME(0,60/$M$7*F49,0) -> 00:00:00 | J49: =IF((J48+G49+L49)<>J48,J48+G49+L49,0) -> 0 | P49: 0.0
H50: =IF(E49>0,H48+E49,0) -> 0.0 | I50: =IF(F49>0,I48+F49,0) -> 0.0 | J50: =IF((J48+G49+L48)<>J48,J48+G49+L48,0) -> 00:00:00 | P50: 0.0
D51: =IF(C52>0,(C52-C50)/100,0) -> 0.00 | F51: =IF(P52<-20,-D51/1.5+E51,IF(P52<0,E51,D51+E51)) -> 0.0 | G51: =TIME(0,60/$M$7*F51,0) -> 00:00:00 | J51: =IF((J50+G51+L51)<>J50,J50+G51+L51,0) -> 0 | P51: 0.0
H52: =IF(E51>0,H50+E51,0) -> 0.0 | I52: =IF(F51>0,I50+F51,0) -> 0.0 | J52: =IF((J50+G51+L50)<>J50,J50+G51+L50,0) -> 00:00:00 | P52: 0.0
J53: =IF((J52+#REF!+L53)<>J52,J52+#REF!+L53,0) ->  | P53: 0.0
A54: TOTAL Marschzeit ohne Pausen | F54: =SUM(G12:G53) -> 00:00:00
A56: Fahrplan | D56: Bemerkungen
A57: Ort | C57: Zeit

Sheet Höhenprofil
B2: Hilfstabelle für Höhenprofil
B3: Horizontaldistanz in km | C3: Höhe ü.M.
B4: =Marschzeitberechnung!H12 -> 0.0 | C4: =Marschzeitberechnung!C12 -> 0
B5: =Marschzeitberechnung!H14 -> 0.0 | C5: =Marschzeitberechnung!C14 -> 0
B6: =Marschzeitberechnung!H16 -> 0.0 | C6: =Marschzeitberechnung!C16 -> 0
B7: =Marschzeitberechnung!H18 -> 0.0 | C7: =Marschzeitberechnung!C18 -> 0
B8: =Marschzeitberechnung!H20 -> 0.0 | C8: =Marschzeitberechnung!C20 -> 0
B9: =Marschzeitberechnung!H22 -> 0.0 | C9: =Marschzeitberechnung!C22 -> 0
B10: =Marschzeitberechnung!H24 -> 0.0 | C10: =Marschzeitberechnung!C24 -> 0
B11: =Marschzeitberechnung!H26 -> 0.0 | C11: =Marschzeitberechnung!C26 -> 0
B12: =Marschzeitberechnung!H28 -> 0.0 | C12: =Marschzeitberechnung!C28 -> 0
B13: =Marschzeitberechnung!H30 -> 0.0 | C13: =Marschzeitberechnung!C30 -> 0
B14: =Marschzeitberechnung!H32 -> 0.0 | C14: =Marschzeitberechnung!C32 -> 0
B15: =Marschzeitberechnung!H34 -> 0.0 | C15: =Marschzeitberechnung!C34 -> 0
B16: =Marschzeitberechnung!H36 -> 0.0 | C16: =Marschzeitberechnung!C36 -> 0
B17: =Marschzeitberechnung!H38 -> 0.0 | C17: =Marschzeitberechnung!C38 -> 0
B18: =Marschzeitberechnung!H40 -> 0.0 | C18: =Marschzeitberechnung!C40 -> 0
B19: =Marschzeitberechnung!H42 -> 0.0 | C19: =Marschzeitberechnung!C42 -> 0
B20: =Marschzeitberechnung!H44 -> 0.0 | C20: =Marschzeitberechnung!C44 -> 0
B21: =Marschzeitberechnung!H46 -> 0.0 | C21: =Marschzeitberechnung!C46 -> 0
B22: =Marschzeitberechnung!H48 -> 0.0 | C22: =Marschzeitberechnung!C48 -> 0
B23: =Marschzeitberechnung!H50 -> 0.0 | C23: =Marschzeitberechnung!C50 -> 0
B24: =Marschzeitberechnung!H52 -> 0.0 | C24: =Marschzeitberechnung!C52 -> 0

Sheet Marschzeitberechnung (Beispiel)
A2: Marschzeitberechnung cudesch
A6: Route: | B6: Vrin (GR) - Disrut Pass - Greina Ebene - Campo (Blenio) | M6: Geschwindigkeits- faktor (Lkm / h):
A7: Datum: | B7: 22.-23.09.2007 | D7: Zwischenwerte | H7: Gesamtsummen | M7: 4
A8: erstellt von: | B8: Omega | D8: Höhendifferenz in 100m * | E8: Horizontaldistanz | F8: Leistungskilometer ** | G8: Marschzeit | H8: Distanz | I8: Leistungskilometer | J8: Geplante Zeit | K8: Tatsächliche Zeit | L8: Pausen | M8: Bemerkungen * Höhenmeter direkt in Hektometer notie- ren (1 hm = 100 m) ** Leistungskilometer: Distanz (in km) + Steigung (in hm)
A9: Landeskarten:
A10: 1233 Greina 1234 Vals 1253 Olivone
A11: Ort, Flurname, Koordinaten | C11: Höhe | D11: hm | E11: km | F11: Lkm | G11: h:mm | H11: km | I11: Lkm | J11: hh:mm | K11: hh:mm | L11: h:mm | P11: Steigung/Gefälle
A12: Vrin | C12: 1475 | J12: 09:00:00 | P12: %
D13: =IF(C14>0,(C14-C12)/100,0) -> 0.02 | E13: 1.4 | F13: =IF(P14<-20,-D13/1.5+E13,IF(P14<0,E13,D13+E13)) -> 1.4 | G13: =TIME(0,60/$M$7*F13,0) -> 00:21:00
A14: Cons | C14: 1477 | H14: =IF(E13>0,H12+E13,0) -> 1.4 | I14: =IF(F13>0,I12+F13,0) -> 1.4 | J14: =IF((J12+G13+L12)<>J12,J12+G13+L12,0) -> 09:21:00 | P14: =IF(E13=0,0,D13/(10*E13)*100) -> 0.1
D15: =IF(C16>0,(C16-C14)/100,0) -> 1.21 | E15: 1.3 | F15: =IF(P16<-20,-D15/1.5+E15,IF(P16<0,E15,D15+E15)) -> 2.5 | G15: =TIME(0,60/$M$7*F15,0) -> 00:37:00 | J15: =IF((J14+G15+L15)<>J14,J14+G15+L15,0) -> 0.4152777778 | P15: =IF(E14=0,0,D14/(10*E14)*100) -> 0.0
A16: Sogn Giusep | C16: 1598 | H16: =IF(E15>0,H14+E15,0) -> 2.7 | I16: =IF(F15>0,I14+F15,0) -> 3.9 | J16: =IF((J14+G15+L14)<>J14,J14+G15+L14,0) -> 09:58:00 | P16: 9.3
D17: =IF(C18>0,(C18-C16)/100,0) -> 0.69 | E17: 1.2 | F17: =IF(P18<-20,-D17/1.5+E17,IF(P18<0,E17,D17+E17)) -> 1.9 | G17: =TIME(0,60/$M$7*F17,0) -> 00:28:00 | J17: =IF((J16+G17+L17)<>J16,J16+G17+L17,0) -> 0.4347222222 | P17: 0.0
A18: Puzzatsch | C18: 1667 | H18: =IF(E17>0,H16+E17,0) -> 3.9 | I18: =IF(F17>0,I16+F17,0) -> 5.8 | J18: =IF((J16+G17+L16)<>J16,J16+G17+L16,0) -> 10:26:00 | P18: 5.8
D19: =IF(C20>0,(C20-C18)/100,0) -> 2.32 | E19: 1.8 | F19: =IF(P20<-20,-D19/1.5+E19,IF(P20<0,E19,D19+E19)) -> 4.1 | G19: =TIME(0,60/$M$7*F19,0) -> 01:01:00 | J19: =IF((J18+G19+L19)<>J18,J18+G19+L19,0) -> 0.4770833333 | P19: 0.0
A20: Tegia Sut | C20: 1899 | H20: =IF(E19>0,H18+E19,0) -> 5.7 | I20: =IF(F19>0,I18+F19,0) -> 9.9 | J20: =IF((J18+G19+L18)<>J18,J18+G19+L18,0) -> 11:27:00 | L20: 01:00:00 | M20: Mittagspause | P20: 12.9
D21: =IF(C22>0,(C22-C20)/100,0) -> 5.29 | E21: 2.7 | F21: =IF(P22<-20,-D21/1.5+E21,IF(P22<0,E21,D21+E21)) -> 8.0 | G21: =TIME(0,60/$M$7*F21,0) -> 01:59:00 | J21: =IF((J20+G21+L21)<>J20,J20+G21+L21,0) -> 0.5597222222 | P21: 0.0
A22: Pass Diesrut | C22: 2428 | H22: =IF(E21>0,H20+E21,0) -> 8.4 | I22: =IF(F21>0,I20+F21,0) -> 17.9 | J22: =IF((J20+G21+L20)<>J20,J20+G21+L20,0) -> 14:26:00 | P22: 19.6
D23: =IF(C24>0,(C24-C22)/100,0) -> -2.34 | E23: 1.0 | F23: =IF(P24<-20,-D23/1.5+E23,IF(P24<0,E23,D23+E23)) -> 2.6 | G23: =TIME(0,60/$M$7*F23,0) -> 00:38:00 | J23: =IF((J22+G23+L23)<>J22,J22+G23+L23,0) -> 0.6277777778 | P23: 0.0
A24: Camona | C24: 2194 | H24: =IF(E23>0,H22+E23,0) -> 9.4 | I24: =IF(F23>0,I22+F23,0) -> 20.5 | J24: =IF((J22+G23+L22)<>J22,J22+G23+L22,0) -> 15:04:00 | P24: -23.4
D25: =IF(C26>0,(C26-C24)/100,0) -> 0.63 | E25: 0.2 | F25: =IF(P26<-20,-D25/1.5+E25,IF(P26<0,E25,D25+E25)) -> 0.8 | G25: =TIME(0,60/$M$7*F25,0) -> 00:12:00 | J25: =IF((J24+G25+L25)<>J24,J24+G25+L25,0) -> 0.6361111111 | P25: 0.0
A26: Carpet la Greina | C26: 2257 | H26: =IF(E25>0,H24+E25,0) -> 9.6 | I26: =IF(F25>0,I24+F25,0) -> 21.3 | J26: =IF((J24+G25+L24)<>J24,J24+G25+L24,0) -> 15:16:00 | P26: 31.5
D27: =IF(C28>0,(C28-C26)/100,0) -> -0.87 | E27: 0.6 | F27: =IF(P28<-20,-D27/1.5+E27,IF(P28<0,E27,D27+E27)) -> 0.6 | G27: =TIME(0,60/$M$7*F27,0) -> 00:09:00 | J27: =IF((J26+G27+L27)<>J26,J26+G27+L27,0) -> 0.6423611111 | P27: 0.0
A28: Terri Hütte | C28: 2170 | H28: =IF(E27>0,H26+E27,0) -> 10.2 | I28: =IF(F27>0,I26+F27,0) -> 21.9 | J28: =IF((J26+G27+L26)<>J26,J26+G27+L26,0) -> 15:25:00 | L28: 17:00:00 | M28: Hüttenübernachtung | P28: -14.5
D29: =IF(C30>0,(C30-C28)/100,0) -> 0.95 | E29: 1.5 | F29: =IF(P30<-20,-D29/1.5+E29,IF(P30<0,E29,D29+E29)) -> 2.5 | G29: =TIME(0,60/$M$7*F29,0) -> 00:36:00 | J29: =IF((J28+G29+L29)<>J28,J28+G29+L29,0) -> 0.6673611111 | P29: 0.0
A30: Pt. 2265 | C30: 2265 | H30: =IF(E29>0,H28+E29,0) -> 11.7 | I30: =IF(F29>0,I28+F29,0) -> 24.4 | J30: =IF((J28+G29+L28)<>J28,J28+G29+L28,0) -> 1.375694444 | P30: 6.3
D31: =IF(C32>0,(C32-C30)/100,0) -> -0.19 | E31: 1.0 | F31: =IF(P32<-20,-D31/1.5+E31,IF(P32<0,E31,D31+E31)) -> 1.0 | G31: =TIME(0,60/$M$7*F31,0) -> 00:15:00 | J31: =IF((J30+G31+L31)<>J30,J30+G31+L31,0) -> 1.386111111 | P31: 0.0
A32: Pt. 2246 | C32: 2246 | H32: =IF(E31>0,H30+E31,0) -> 12.7 | I32: =IF(F31>0,I30+F31,0) -> 25.4 | J32: =IF((J30+G31+L30)<>J30,J30+G31+L30,0) -> 1.386111111 | P32: -1.9
D33: =IF(C34>0,(C34-C32)/100,0) -> 0.98 | E33: 2.5 | F33: =IF(P34<-20,-D33/1.5+E33,IF(P34<0,E33,D33+E33)) -> 3.5 | G33: =TIME(0,60/$M$7*F33,0) -> 00:52:00 | J33: =IF((J32+G33+L33)<>J32,J32+G33+L33,0) -> 1.422222222 | P33: 0.0
A34: Pt. 2344 | C34: 2344 | H34: =IF(E33>0,H32+E33,0) -> 15.2 | I34: =IF(F33>0,I32+F33,0) -> 28.9 | J34: =IF((J32+G33+L32)<>J32,J32+G33+L32,0) -> 1.422222222 | P34: 3.9
D35: =IF(C36>0,(C36-C34)/100,0) -> 0.11 | E35: 0.5 | F35: =IF(P36<-20,-D35/1.5+E35,IF(P36<0,E35,D35+E35)) -> 0.6 | G35: =TIME(0,60/$M$7*F35,0) -> 00:09:00 | J35: =IF((J34+G35+L35)<>J34,J34+G35+L35,0) -> 1.428472222 | P35: 0.0
A36: Greina Pass | C36: 2355 | H36: =IF(E35>0,H34+E35,0) -> 15.7 | I36: =IF(F35>0,I34+F35,0) -> 29.5 | J36: =IF((J34+G35+L34)<>J34,J34+G35+L34,0) -> 1.428472222 | P36: 2.2
D37: =IF(C38>0,(C38-C36)/100,0) -> 0.24 | E37: 0.5 | F37: =IF(P38<-20,-D37/1.5+E37,IF(P38<0,E37,D37+E37)) -> 0.7 | G37: =TIME(0,60/$M$7*F37,0) -> 00:11:00 | J37: =IF((J36+G37+L37)<>J36,J36+G37+L37,0) -> 1.436111111 | P37: 0.0
A38: Pt. 2379 | C38: 2379 | H38: =IF(E37>0,H36+E37,0) -> 16.2 | I38: =IF(F37>0,I36+F37,0) -> 30.2 | J38: =IF((J36+G37+L36)<>J36,J36+G37+L36,0) -> 1.436111111 | P38: 4.8
D39: =IF(C40>0,(C40-C38)/100,0) -> -1.50 | E39: 1.3 | F39: =IF(P40<-20,-D39/1.5+E39,IF(P40<0,E39,D39+E39)) -> 1.3 | G39: =TIME(0,60/$M$7*F39,0) -> 00:19:00 | J39: =IF((J38+G39+L39)<>J38,J38+G39+L39,0) -> 1.449305556 | P39: 0.0
A40: bei Scaletta Hütte | C40: 2229 | H40: =IF(E39>0,H38+E39,0) -> 17.5 | I40: =IF(F39>0,I38+F39,0) -> 31.5 | J40: =IF((J38+G39+L38)<>J38,J38+G39+L38,0) -> 1.449305556 | P40: -11.5
D41: =IF(C42>0,(C42-C40)/100,0) -> -2.53 | E41: 1.5 | F41: =IF(P42<-20,-D41/1.5+E41,IF(P42<0,E41,D41+E41)) -> 1.5 | G41: =TIME(0,60/$M$7*F41,0) -> 00:22:00 | J41: =IF((J40+G53+L41)<>J40,J40+G53+L41,0) -> 0 | P41: 0.0
A42: Pian Geirett | C42: 1976 | H42: =IF(E41>0,H40+E41,0) -> 19.0 | I42: =IF(F41>0,I40+F41,0) -> 33.0 | J42: =IF((J40+G41+L40)<>J40,J40+G41+L40,0) -> 1.464583333 | L42: 01:00:00 | M42: Mittagspause | P42: -16.9
D43: =IF(C44>0,(C44-C42)/100,0) -> -1.92 | E43: 1.5 | F43: =IF(P44<-20,-D43/1.5+E43,IF(P44<0,E43,D43+E43)) -> 1.5 | G43: =TIME(0,60/$M$7*F43,0) -> 00:22:00 | J43: =IF((J42+#REF!+L43)<>J42,J42+#REF!+L43,0) ->  | P43: 0.0
A44: Alpe di Camadra di Fuori | C44: 1784 | H44: =IF(E43>0,H42+E43,0) -> 20.5 | I44: =IF(F43>0,I42+F43,0) -> 34.5 | J44: =IF((J42+G43+L42)<>J42,J42+G43+L42,0) -> 1.521527778 | P44: -12.8
D45: =IF(C46>0,(C46-C44)/100,0) -> -3.76 | E45: 2.0 | F45: =IF(P46<-20,-D45/1.5+E45,IF(P46<0,E45,D45+E45)) -> 2.0 | G45: =TIME(0,60/$M$7*F45,0) -> 00:30:00 | J45: =IF((J44+G45+L45)<>J44,J44+G45+L45,0) -> 1.542361111 | P45: 0.0
A46: Daigra | C46: 1408 | H46: =IF(E45>0,H44+E45,0) -> 22.5 | I46: =IF(F45>0,I44+F45,0) -> 36.5 | J46: =IF((J44+G45+L44)<>J44,J44+G45+L44,0) -> 1.542361111 | P46: -18.8
D47: =IF(C48>0,(C48-C46)/100,0) -> -1.68 | E47: 2.0 | F47: =IF(P48<-20,-D47/1.5+E47,IF(P48<0,E47,D47+E47)) -> 2.0 | G47: =TIME(0,60/$M$7*F47,0) -> 00:30:00 | J47: =IF((J46+G47+L47)<>J46,J46+G47+L47,0) -> 1.563194444 | P47: 0.0
A48: Baselga | C48: 1240 | H48: =IF(E47>0,H46+E47,0) -> 24.5 | I48: =IF(F47>0,I46+F47,0) -> 38.5 | J48: =IF((J46+G47+L46)<>J46,J46+G47+L46,0) -> 1.563194444 | P48: -8.4
D49: =IF(C50>0,(C50-C48)/100,0) -> -0.24 | E49: 1.5 | F49: =IF(P50<-20,-D49/1.5+E49,IF(P50<0,E49,D49+E49)) -> 1.5 | G49: =TIME(0,60/$M$7*F49,0) -> 00:22:00 | J49: =IF((J48+G49+L49)<>J48,J48+G49+L49,0) -> 1.578472222 | P49: 0.0
A50: Campo (Blenio) | C50: 1216 | H50: =IF(E49>0,H48+E49,0) -> 26.0 | I50: =IF(F49>0,I48+F49,0) -> 40.0 | J50: =IF((J48+G49+L48)<>J48,J48+G49+L48,0) -> 1.578472222 | P50: -1.6
D51: =IF(C52>0,(C52-C50)/100,0) -> 0.00 | F51: =IF(P52<-20,-D51/1.5+E51,IF(P52<0,E51,D51+E51)) -> 0.0 | G51: =TIME(0,60/$M$7*F51,0) -> 00:00:00 | J51: =IF((J50+G51+L51)<>J50,J50+G51+L51,0) -> 0 | P51: 0.0
H52: =IF(E51>0,H50+E51,0) -> 0.0 | I52: =IF(F51>0,I50+F51,0) -> 0.0 | J52: =IF((J50+G51+L50)<>J50,J50+G51+L50,0) -> 00:00:00 | P52: 0.0
J53: =IF((J52+#REF!+L53)<>J52,J52+#REF!+L53,0) ->  | P53: 0.0
A54: TOTAL Marschzeit ohne Pausen | F54: =SUM(G12:G53) -> 09:53:00
A56: Fahrplan | D56: Bemerkungen
A57: Ort | C57: Zeit
A58: Olten ab: | C58: 06:00:00 | D58: via Zürich-Chur-Ilanz
A59: Vrin an: | C59: 09:23:00
A60: Campo ab: | C60: 16:58:00 | D60: via Olivone-Biasca-Luzern
A61: Olten an: | C61: 21:25:00

Sheet Anleitung
E1: Geschwindigkeitsfaktoren
F2: mit Gepäck | G2: ohne Gepäck
E3: untrainierte Gruppen, Kinder, grosse Gruppen | F3: 15 min / Lkm 4 Lkm / h | G3: 12 min / Lkm 5 Lkm / h
E4: trainierte Gruppen, Jugendliche, kleine Gruppen | F4: 12 min / Lkm 5 Lkm / h | G4: 10 min /Lkm 6 Lkm / h
E5: Velofahren
E6: Die Zeitberechnung mit Leistunskilometern ist beim Velofahren wesentlich ungenauer als beim Wandern. Steigungen und Gefälle haben einen grösseren Einfluss. Die hier aufgeführten Faktoren gelten für falche Velotouren.
E7: wenig trainierte oder grosse Gruppen | F7: 5 min / Lkm 12 km / h | G7: 4 min / Lkm 15 km / h
E8: trainierte, kleine Gruppe, gute Velos | F8: 4 min /Lkm 15 km / h | G8: 3 min / Lkm 20 km / h
E10: Gefälle
E11: Für grosse und steie Abstiege im Gebirge braucht man mehr Zeit. Das Gefälle wird berücksichtigt, wenn es sich um mehr als 20 m auf 100 m Horizontaldistanz handelt. Dann entsprechen 150 Höhenmeter einem Leistungskilometer.
E13: Weitere Faktoren
E14: Die effektive Marschgeschwindigkeit hängt von vielen Faktoren ab. Einzelne schwierige Stellen können zu "Zeitfressern" werden. Einige wichtige Faktoren, welche du berücksichtigen solltest:
F15: schneller | G15: langsamer
E16: Gruppengrösse | F16: klein | G16: gross
E17: Tageszeit | F17: Morgen, Nacht | G17: Nachmittag, Abend
E18: Wetter | F18: kühl | G18: heiss
E19: Gepäck | F19: wenig | G19: viel
E20: Wege | F20: gute Wege | G20: Geröllfelder, querfeldein
E21: Kartensicherheit | F21: gute Karten- kenntnisse | G21: häufige Kar- tenkontrollen

Sheet Impressum
A1: Die Marschtabelle entspricht der Vorlage aus dem cudesch.
B3: Die gelben Felder sind die Eingabefelder.
B4: Mit der Tabulatortaste springst Du von Eingabefeld zu Eingabefeld.
B7: Erstellt wurde diese Tabelle von Philipp Just/Grizzly
B8: Ergänzt von Thomas Scheidgen/Phantom
A9: 01-2007 | B9: Angepasst im Rahmen der cudesch-Erarbeitung von Stephan Heimgartner/Omega
A12: Bezug:
A13: www.cudesch.pbs.ch
